Cogmind - Beta 14 *** ADVENTURER MODE // 2024.08.11 @ 20:33:44 Player: Ms. V3-11A Result: Destroyed by Y-45 Defender with Heavy Assault Rifle Performance ------------- Evolutions (0) 0 Regions Visited (2) 400 Robots Destroyed (32) 160 Value Destroyed (916) 916 Prototype IDs (3) 60 Alien Tech Used (0) 0 Bonus (0) 0 TOTAL SCORE: 1536 Bonus ------- None Cogmind --------- Core Integrity 0/250 Matter 7/300 Energy 100/100 System Corruption 4% Temperature Cool (9) Movement Treading (160) Location -10/Subcaves Parts ------- > --- POWER (1) -------- Subdweller Power Source > --- PROPULSION (2) --- Improved Treads Improved Treads > --- UTILITY (2) ------ Scrap Shield > --- WEAPON (2) ------- Slug Cannon Slug Cannon > --- INVENTORY (5) ---- Light Treads High-capacity Storage Unit Battle Cannon Makeshift Hammer Scrap Shield Fragment (49) Peak State ------------ > --- POWER ------------ Subdweller Power Source > --- PROPULSION ------- Improved Treads Improved Treads > --- UTILITY ---------- Scrap Shield > --- WEAPON ----------- Slug Cannon Slug Cannon > --- INVENTORY -------- Light Treads High-capacity Storage Unit Battle Cannon Makeshift Hammer Scrap Shield Fragment [Rating: 19] Favorites ----------- Power Subdweller Power Source Engine Subdweller Power Source Power Core Light Nuclear Core Propulsion Improved Treads Treads Improved Treads Leg Aluminum Leg Utility Scrap Shield Device Seismic Detector Storage Small Storage Unit Protection Scrap Shield Weapon Slug Cannon Energy Gun Improved EM Shotgun Ballistic Gun Barrage Gun Ballistic Cannon Slug Cannon Build | -11 -10 -10 ------- Run | Yrd Mat Sub Slots Evolved . | . . . Power . | . . . Propulsion . | . . . Utility . | . . . Weapon . | . . . Parts Attached 32 | 2 12 18 Power 6 | . 1 5 Engine 5 | . . 5 Core 1 | . 1 . Reactor . | . . . Propulsion 7 | 2 3 2 Treads 7 | 2 3 2 Leg . | . . . Wheel . | . . . Hover . | . . . Flight . | . . . Utility 7 | . 5 2 Device 2 | . 2 . Storage 3 | . 2 1 Processor . | . . . Hackware . | . . . Protection 2 | . 1 1 Artifact . | . . . Weapon 12 | . 3 9 Energy Gun 5 | . 3 2 Energy Cannon . | . . . Ballistic Gun 5 | . . 5 Ballistic Cannon 2 | . . 2 Launcher . | . . . Special Weapon . | . . . Impact Weapon . | . . . Slashing Weapon . | . . . Piercing Weapon . | . . . Special Melee Weapon . | . . . Unidentified Prototypes 1 | . 1 . Corrupted Parts 1 | . . 1 System Corruption 3 | . . 3 Parts Lost 8 | . 1 7 Power 2 | . . 2 Propulsion 2 | . . 2 Utility 1 | . . 1 Weapon 3 | . 1 2 Highest Loss Streak 4 | . 1 4 To Critical Strikes . | . . . Average Slot Usage (%) 82 | . 91 79 Engine 6 | . 2 8 Core 2 | . 12 . Treads 27 | . 28 27 Device 1 | . 4 . Storage 3 | . 14 . Protection 10 | . . 13 Energy Gun 10 | . 27 5 Ballistic Gun 10 | . . 13 Ballistic Cannon 7 | . . 9 Peak Build Rating 19 | 6 15 19 Average Rating 15 | 5 14 15 On Entrance 9 | 6 6 15 Naked Turns . | . . . Heaviest Build 49 | 14 36 49 Greatest Support 46 | 40 46 46 Greatest Overweight (x) 1 | . . 1 Average Overweight (x) . | . . . Largest Inventory Capacity 20 | 8 15 20 Average Capacity 7 | 8 11 5 Most Carried 10 | 6 10 10 Average Carried 5 | 4 7 4 Final Capacity 15 | 8 15 5 Final Carried 10 | 2 10 5 Class Distribution -------------------- 97% | Mutant Dominant Class ---------------- Mutant | -10/Materials Mutant | -10/Subcaves Resources | -11 -10 -10 ----------- Run | Yrd Mat Sub Matter Collected 1052 | 200 182 670 Remotely . | . . . Salvage Created 1254 | . 628 626 Parts 58 | . 31 27 Haulers Intercepted 2 | . 2 . Recyclers Shooed 1 | . 1 . Parts Field Recycled . | . . . Retrieved Matter . | . . . Parts Self-Destructed 21 | . . 21 Prevented . | . . . Kills | -11 -10 -10 ------- Run | Yrd Mat Sub Combat Hostiles Destroyed 27 | . 11 16 Guns 18 | . 8 10 Cannons 3 | . . 3 AOE 2 | . 1 1 Classes Destroyed 8 | . 4 4 Hauler 2 | . 2 . Recycler 1 | . 1 . Turret 2 | . . 2 Swarmer 8 | . 3 5 Grunt 8 | . 8 . Sentry 1 | . . 1 Artisan 1 | . . 1 Subdweller 10 | . . 10 Best Kill Streak 4 | . 4 4 Combat Bots Only 4 | . 3 4 Max Kills in Single Turn 2 | . 2 2 Gunslinging 1 | . 1 1 Exploded 1 | . 1 1 Melee . | . . . Uniques/NPCs Destroyed . | . . . Combat | -11 -10 -10 -------- Run | Yrd Mat Sub Hostile Shots Fired 217 | . 46 171 Missed 76 | . 15 61 Damage Taken 1570 | . 293 1277 Core 250 | . 44 206 Absorbed by Shields . | . . . Ignored by Resistances 451 | . 92 359 Core Remaining (%) 100 | 100 . . Volleys Fired 123 | . 30 93 Largest 2 | . 2 2 Hottest 96 | . 90 96 Shots Fired 206 | . 49 157 Gun 148 | . 49 99 Cannon 58 | . . 58 Launcher . | . . . Special . | . . . Kinetic 124 | . . 124 Thermal . | . . . Explosive . | . . . Electromagnetic 82 | . 49 33 Robot Hit Streak 32 | . 16 32 Robot Miss Streak 3 | . 3 3 Penetration Max . | . . . Secondary Targets 6 | . 2 4 Max Gunslinging Chain 1 | . 1 1 Shots Hit Robots 126 | . 40 86 Core Hits 50 | . 21 29 Critical Kills 2 | . . 2 Critical Parts Destroyed . | . . . Critical Strikes 3 | . . 3 Destroy 2 | . . 2 Corrupt 1 | . . 1 Melee Attacks . | . . . Impact . | . . . Slashing . | . . . Piercing . | . . . Sneak Attacks . | . . . Combat Hostiles . | . . . Follow-up Attacks . | . . . Damage Inflicted 1999 | . 776 1223 Guns 1541 | . 646 895 Cannons 241 | . . 241 Explosions 212 | . 125 87 Melee . | . . . Ramming 5 | . 5 . Kinetic 688 | . . 688 Thermal 212 | . 125 87 Explosive . | . . . Electromagnetic 1094 | . 646 448 Impact . | . . . Slashing . | . . . Piercing . | . . . Highest Corruption 4 | . 1 4 Average Corruption 3 | . 1 3 Corruption Purged . | . . . Corruption Blocked . | . . . Effects 81 | . 2 79 Message Errors 23 | . 1 22 Matter Fused 22 | . . 22 Heat Flow Errors 9 | . . 9 Energy Discharges 7 | . . 7 Parts Rejected 1 | . 1 . Data Loss (minor) 9 | . . 9 Data Loss (major) 2 | . . 2 Misfires 4 | . . 4 Alerts 1 | . . 1 Weapon Failures 3 | . . 3 Overload Shots . | . . . Overflow Damage 3 | . 3 . Projectiles . | . . . Explosions 3 | . 3 . Melee . | . . . Knockbacks 1 | . . 1 Impact . | . . . Kinetic 1 | . . 1 Secondary . | . . . Self-Inflicted Damage 46 | . 18 28 Shots 3 | . 1 2 Rammed 1 | . 1 . Targets Rammed 1 | . 1 . Kicked . | . . . Crushed . | . . . Highest Temperature 263 | . 263 259 Average Temperature 97 | . 95 100 Received Heat Transfer 501 | . 156 345 Siege Activations . | . . . Robots Corrupted 4 | . 2 2 Combat Hostiles 4 | . 2 2 Parts Fried 9 | . 4 5 Impact Corruptions . | . . . Robots Melted . | . . . Combat Hostiles . | . . . Parts Melted 1 | . . 1 Heat Transferred 300 | . 150 150 Parts Sabotaged . | . . . Parts Stolen . | . . . Parts Stripped . | . . . Power Chain Reactions 5 | . 3 2 Alert | -11 -10 -10 ------- Run | Yrd Mat Sub Peak Influence 142 | . 142 . Initial . | . . . Average 56 | . 56 . Maximum Alert Level . | . . . Low Security (%) 100 | 100 100 . Level 1 . | . . . Level 2 . | . . . Level 3 . | . . . Level 4 . | . . . Level 5 . | . . . High Security . | . . . Max Security . | . . . Squads Dispatched 1 | . 1 . Investigation 1 | . 1 . Extermination . | . . . Reinforcement . | . . . Assault . | . . . Garrison . | . . . Intercept . | . . . Searches Triggered . | . . . Construction Impeded . | . . . Haulers Reinforced . | . . . Active Scanning Responses . | . . . Cargo Convoy Interrupts . | . . . Stealth | -11 -10 -10 --------- Run | Yrd Mat Sub Distress Signals 1 | . 1 . Communications Jammed . | . . . Distress Signals . | . . . Times Spotted 39 | . 17 22 Peak Tracking Total 6 | . 4 6 Tactical Retreats 2 | . . 2 Traps | -11 -10 -10 ------- Run | Yrd Mat Sub Traps Triggered 3 | . 2 1 Indirectly . | . . . Trap Hack Attempts . | . . . Triggered . | . . . Disarmed . | . . . Reprogrammed . | . . . Reused . | . . . Traps Extracted . | . . . Installed . | . . . Triggered . | . . . Machines | -11 -10 -10 ---------- Run | Yrd Mat Sub Machines Disabled 2 | . 1 1 Max in Single Turn 1 | . 1 1 Machines Repaired . | . . . Machines Dismantled . | . . . Machines Sabotaged . | . . . Overloaded Fab Kills . | . . . Hacking | -11 -10 -10 --------- Run | Yrd Mat Sub Machines Accessed 4 | . 4 . Terminals 4 | . 4 . Fabricators . | . . . Repair Stations . | . . . Recycling Units . | . . . Scanalyzers . | . . . Garrison Access . | . . . Total Hacks 12 | . 12 . Successful 8 | . 8 . Failed 4 | . 4 . Catastrophic . | . . . Database Lockouts . | . . . Manual 7 | . 7 . Terminals 12 | . 12 . Fabricators . | . . . Repair Stations . | . . . Recycling Units . | . . . Scanalyzers . | . . . Garrison Access . | . . . Terminal Hacks 4 | . 4 . Prototype ID Bank 1 | . 1 . Alert Level 1 | . 1 . Locate Traps 1 | . 1 . Zone Layout 1 | . 1 . Fabricator Hacks . | . . . Repair Station Hacks . | . . . Recycling Unit Hacks . | . . . Scanalyzer . | . . . Garrison Access Hacks . | . . . Unauthorized Hacks 4 | . 4 . Terminals 4 | . 4 . Botnet 1 | . 1 . Skim 3 | . 3 . Fabricators . | . . . Repair Stations . | . . . Recycling Units . | . . . Scanalyzers . | . . . Garrison Access . | . . . Data Cores Recovered . | . . . Used . | . . . Hacking Detections 3 | . 3 . Full Trace Events . | . . . Feedback Events . | . . . Feedback Blocked . | . . . Robot Schematics Acquired . | . . . Robots Built . | . . . Authchips . | . . . Time . | . . . Total Robot Build Rating . | . . . Part Schematics Acquired . | . . . Parts Built . | . . . Authchips . | . . . Time . | . . . Total Part Build Rating . | . . . Parts Repaired . | . . . Time . | . . . Parts Recycled . | . . . Recycled Matter . | . . . Retrieved Matter . | . . . Retrieved Components . | . . . Parts Scanalyzed . | . . . Part Schematics Acquired . | . . . Parts Damaged . | . . . Bothacking | -11 -10 -10 ------------ Run | Yrd Mat Sub Used RIF Installer . | . . . Robots Hacked . | . . . Non-combat . | . . . Combat . | . . . Robot Hacks Applied . | . . . Relay Couplers Released . | . . . Fabnet Peak Effective % . | . . . Robots Rewired . | . . . Allies Hacked . | . . . Hacks Repelled . | . . . Allies | -11 -10 -10 -------- Run | Yrd Mat Sub Total Allies . | . . . Largest Group . | . . . Highest-Rated Group . | . . . Highest-Rated Ally . | . . . Total Orders . | . . . Ally Attacks . | . . . Total Damage . | . . . Kills . | . . . Allies Corrupted . | . . . Allies Melted . | . . . Intel | -11 -10 -10 ------- Run | Yrd Mat Sub Robot Analysis Total . | . . . Derelict Logs Recovered 1 | . . 1 Drone Launches . | . . . Drone Recoveries . | . . . Exploration | -11 -10 -10 ------------- Run | Yrd Mat Sub Turns Passed 4558 | 6 1047 3505 Spaces Moved 2495 | 2 528 1965 Core . | . . . Treads 2494 | 1 528 1965 Legs 1 | 1 . . Wheels . | . . . Hover . | . . . Flight . | . . . Fastest Speed 120 | 120 160 160 Average Speed 161 | 140 160 162 Slowest Speed 240 | 160 160 240 Overloaded Moves . | . . . Propulsion Burnouts . | . . . Robots Hopped . | . . . Cave-ins Triggered . | . . . Exploration Rate (%) 52 | 2 81 73 Regions Visited 2 Branch Regions 1 Pre-discovered Areas 2 | . . 2 Known Exits Taken . | . . . Unknown Exits Taken 2 | 1 1 . Scrap Searched 9 | . . 9 Spaces Dug . | . . . Terrain Destroyed 25 | . 7 18 Melee . | . . . Projectile 11 | . . 11 AOE 14 | . 7 7 Terrain Rammed . | . . . Walls Destroyed . | . . . Machines Disabled . | . . . Actions | -11 -10 -10 --------- Run | Yrd Mat Sub Total 2824 | 7 679 2138 Wait 117 | . 94 23 Move 2493 | 1 527 1965 Hop . | . . . Pick Up 21 | . 8 13 Fast Attach 12 | . 7 5 Attach 10 | 2 1 7 Detach 1 | . 1 . Swap 10 | . 4 6 Drop 26 | 4 6 16 Fire 123 | . 30 93 Melee . | . . . Ram . | . . . Kick . | . . . Crush 1 | . 1 . Escape Stasis . | . . . Rewire . | . . . Trap . | . . . Miscellaneous 10 | . . 10 Route ------- -11/Scrapyard -10/Materials (discovered 4 exits: [*Mat x2] / [*Min] / [*Sub]) -10/Subcaves (discovered 2 exits: [*Mat] / [*Rec]) History --------- Turn | Location | Event 1 | -11/Scrapyard | Discovered new exit (range 1) 7 | -11/Scrapyard | Entered Materials 305 | -10/Materials | Build established: Mutant 436 | -10/Materials | Discovered new exit (range 15) 646 | -10/Materials | Discovered new exit (range 12) 879 | -10/Materials | Discovered new exit (range 16) 1027 | -10/Materials | Discovered new exit (range 16) 1054 | -10/Materials | Entered Subcaves 1059 | -10/Subcaves | Ambushed by Subdwellers from Twisted Machinery 1117 | -10/Subcaves | Lost 3 parts (1p1n1u) 1246 | -10/Subcaves | Core integrity fell below 50% 1284 | -10/Subcaves | Lost 4 parts (1p1n2w) 1345 | -10/Subcaves | Learned location of Zion (-7) 1345 | -10/Subcaves | Met a Zionite searching for "candidates" 2020 | -10/Subcaves | Discovered new exit (range 7) 2124 | -10/Subcaves | Ambushed by angry Subdweller bent on revenge 2293 | -10/Subcaves | Discovered new exit (range 15) 2310 | -10/Subcaves | Core integrity fell below 20% 2402 | -10/Subcaves | Shifting Twisted Machinery released Slug Cannon 2434 | -10/Subcaves | Shifting Twisted Machinery released Ripper 2658 | -10/Subcaves | Disturbed a concealed Subdweller 3801 | -10/Subcaves | A swath of the cavern ceiling suddenly collapsed 3883 | -10/Subcaves | A swath of the cavern ceiling suddenly collapsed 4121 | -10/Subcaves | Shifting Twisted Machinery released Sub. Shrapnel Launcher 4134 | -10/Subcaves | Shifting Twisted Machinery released Slug Cannon 4559 | -10/Subcaves | Destroyed by Y-45 Defender with Heavy Assault Rifle Last Messages --------------- 04145_ System corrupted: Slug Cannon jammed. 04176_ System corrupted: Heat flow error (+290). 04203_ Q>EM2#E%JQZ9 1:IZ#U0JOV9DSMU 04218_ Dropped Barrage Gun. 04218_ Acquired Slug Cannon. 04219_ B>OUIFR =8NV8LC |GSLKH 04238_ System corrupted: Matter fused (-10). 04255_ System corrupted: Matter fused (-5). 04317_ System corrupted: Matter fused (-6). 04336_ System corrupted: Component data lost. 04341_ Subatomizers dissect the Broken Sub. Power Source. 04360_ Slug penetrates Earth. 04369_ System corrupted: Matter fused (-6). 04387_ Slug penetrates Wall. 04392_ System corrupted: Energy discharge (-66). 04423_ System corrupted: Matter fused (-7). 04445_ MW&RSI0 |XJPFUNC PZWY4KZ|XDTIOQ 04464_ System corrupted: Matter fused (-8). 04496_ Sub. Power Source shoots sparks and powers down. 04532_ System corrupted: Slug Cannon jammed. Map ----- +----------------------------------------------------+ | ?????????## ## #?##### ## "# #"""# ##????? | | ?????????# ## #### ##???## ###### ##?????? | | ?????????# ######??###???## #???#"" #?????? | | ?????????###?????????????# ###?#####?????? | | ?????????????????????????# #???????????? | | ?????????????????????????# ##??????????? | | ????????????????????????## ##?????????? | | ???????????????????????## ###???????? | | ???????????????????????# #???????? | | ???????????????????????# ##???????? | | ???????????????????????## ## #????????? | | ????????????????????????# ## ###????????? | | ???????????????????????## ##??????????? | | ???????????????????????# # ##???????????? | | ???????????????????????# ## ###????????????? | | ???????????????????????# ## #??????????????? | | ???????????????????????## #### #??????????????? | | ???????????????????????## ##?# ##??####????????? | | ???????????????????????# ### #???# #????????? | | ???????????????????????## ## ##??# #????????? | | ???????????????????????## #??# #????????? | | ???????????????????????# #??# #????????? | | ???????????????????????# ### #### ##????????? | | ???????????????????????###;;##" #?????????? | | ????????????????????????##; ;##" #?????????? | | ????????????????????????#@ ####"" #?????????? | | ????????????????????????# # ?## ## ##?????????? | | ????????????????????????; Y;##?##### #??????????? | | ???????????????????????"#%;;# ##### ##?????????? | | ??????????????????????#"#; #; #""" #####?????? | | ??????????????????????#?; ##;; #"##" ##????? | | ????????????????????????#%#? ##"#"# #????? | | ????????????????????????###???# #" ##????? | | ????????????????????????????????#" # ####?????? | | ????????????????????????????????# #????????? | | ????????????????????????????????## # ##????????? | | ????????????????????????????????# #????????? | | ???????????????????????????????## #????????? | | ??????????????????????????????## ##???????? | | ??????????????????????????????# """" ####????? | | ??????????????????????????????# """" #????? | | ??????????????????????????????## ##????? | | ????????????????????????######### ##?????? | | ???????????????????????## #?## #??????? | | ???????????????????????# ##?## #??????? | | ??????????????????????## #### #??????? | | ??????????????????????#"" [ " " #??????? | | ??????????????????????#"" "" #??????? | | ??????????????????????#"" ## #??????? | | ??????????????????????#" #### #??????? | +----------------------------------------------------+ Best States ------------- Heat Dissipation 25 Energy Generation 15 Energy Capacity 250 Matter Stores 300 Matter Capacity 300 Sight Range 16 Terrain Scan Density 10 Armor Coverage 800 Resistance: KI 20 Resistance: TH 20 Resistance: EX 20 Resistance: EM 20 Resistance: I 20 Resistance: S 20 Resistance: P 20 Evasion (%) 40 Recoil Reduction 2 Offensive Hacking 10 Item Schematics ----------------- None Robot Schematics ------------------ None Fabricated ------------ Nothing Alien Tech Used ----------------- None Achievements -------------- None Challenges ------------ None Game ------ Seed BeamDeepDriver Manual? 0 Play Time 00:25:23 Cumulative 260.7 hours Start 2024.08.11 @ 20:01:47 End 2024.08.11 @ 20:33:44 Sessions 1 Manual Loads 0 Difficulty Adventurer Special Mode None Game No. 196 Rogue 63 Adventurer 107 Explorer 26 Win Type - Total 1 Types 1/0/0/0/0/0/0/0/0 Lore% 59 Gallery% 68 Achievement% 68 Wizard Run 0 Options --------- Layout 2 ASCII 0 Keyboard 0 Movement Mouse Keybinds 0 Fullscreen 0 Font 18/CogNarrow Map View 64x51 Zoom Use 0% Tactical HUD 1 Map Filters NONE Filters BRIGHTNESS(115)|SATURATION(100)|LOW_CONTRAST(0,16,30) Steam 1 RUN: f09a04b2-10b7-4b50-a6ea-3d937f1f7470